bitfinex-derivatives/quotes_ETHF0:USTF0_20251028
["timestamp","ask_amount","ask_price","bid_price","bid_amount"]
[1761665072223,2.5976,4118.1,4117.8,0.43713]
[1761665072422,2.5976,4117.8,4117.3,3.1818193]
[1761665072633,2.5976,4117.8,4117.5,0.43717]
[1761665072825,2.74530348,4117.8,4117.5,0.43717]
[1761665073025,2.5976,4117.8,4117.5,0.43717]
[1761665073425,2.5976,4117.8,4117.6,0.43716]
[1761665073725,2.5976,4117.8,4117.6,0.43715]
[1761665073927,2.5976,4117.6,4117.5,0.43716]
[1761665074331,2.74530348,4117.6,4117.5,0.43716]
[1761665074527,1.0493,4117.5,4116.3,0.00257653]
[1761665074833,2.5516,4117.4,4117.2,0.43719]
[1761665075130,2.5516,4117.4,4117.2,15.01219]
[1761665075327,1.0493,4117.5,4117.4,0.43718]
[1761665075527,1.0493,4117.5,4117.2,14.575]
[1761665075832,2.5516,4117.4,4117.3,0.43719]
[1761665076834,3.41040325,4117.7,4117.6,0.43716]
[1761665077037,2.5516,4117.7,4117.6,0.43716]
[1761665077332,2.5516,4117.4,4117.2,0.4372]
[1761665078136,1.0493,4117.5,4117.4,0.43718]
[1761665078636,3.6009,4117.5,4117.4,0.43718]
[1761665080030,3.6009,4117.5,4117.4,0.50998]
[1761665080534,2.5516,4118.1,4117.9,0.43712]
[1761665082442,2.5516,4118.1,4118.0,0.43712]
[1761665082634,2.5516,4118.1,4118.0,3.62740058]
[1761665082837,3.19745205,4118.1,4118.0,18.20140058]
[1761665083036,3.19745205,4118.1,4118.0,0.43712]
[1761665083230,3.19745205,4118.1,4118.0,18.11238896]
[1761665083436,3.19832891,4118.1,4118.0,3.53838896]
[1761665083637,4.08873239,4118.1,4116.4,9.4]
[1761665083837,3.2943,4117.9,4117.8,0.43713]
[1761665084140,5.8459,4117.7,4117.6,0.43715]
[1761665084445,6.5067656,4117.7,4117.6,15.01115]
[1761665084942,2.5516,4117.7,4117.6,15.01115]
[1761665087247,4.2606,4117.7,4117.6,15.01115]
[1761665087941,4.2606,4117.7,4117.6,15.01015]
[1761665088142,4.2606,4117.7,4117.6,0.43715]
[1761665088345,2.5516,4117.7,4117.6,15.01015]
[1761665089142,2.69930348,4117.7,4117.6,15.01015]
[1761665089342,2.5516,4117.7,4117.6,15.01015]
[1761665090242,0.9966,4118.4,4117.6,17.6575119]
[1761665090453,2.7056,4118.4,4118.3,0.43708]
[1761665090643,4.2909,4118.4,4118.3,0.43708]
[1761665091145,1.709,4118.3,4118.2,0.43709]
[1761665091452,1.0493,4117.4,4117.3,3.5810484]
[1761665091648,1.0493,4117.4,4117.3,18.1540484]
[1761665091850,3.2943,4118.3,4118.2,0.43708]
[1761665092351,5.99360348,4118.3,4118.2,0.43708]
[1761665092653,2.5516,4117.8,4117.7,0.43715]
[1761665092952,0.9966,4118.4,4117.9,3.59331248]
[1761665093149,1.709,4118.0,4117.9,3.59331248]
[1761665093352,1.709,4118.0,4117.9,15.00913]
[1761665093353,5.99360348,4118.0,4117.9,15.00913]
[1761665093841,2.5516,4117.8,4116.1,2.18657]
[1761665094045,2.5516,4117.8,4117.7,0.43715]
[1761665094441,0.9966,4118.4,4117.0,1.09306]
[1761665094442,5.8459,4117.7,4117.0,1.09306]
[1761665094651,1.709,4117.2,4117.1,15.00921]
[1761665094851,4.2606,4117.2,4117.1,15.00921]
[1761665095148,4.40830348,4117.2,4117.1,18.16710132]
[1761665095544,4.2606,4117.2,4117.1,3.59510132]
[1761665095740,5.99360348,4117.2,4117.1,15.00921]
[1761665095955,5.99360348,4117.2,4117.1,0.43721]
[1761665096145,5.99360348,4117.2,4117.1,15.00921]
[1761665096454,5.8459,4117.2,4117.1,15.00921]
[1761665096654,4.2606,4117.2,4117.1,15.00921]
[1761665096854,4.2606,4117.2,4117.1,0.43721]
[1761665097056,4.2606,4117.2,4117.1,15.00921]
[1761665097253,4.2606,4117.2,4117.1,0.43721]
[1761665097454,4.40830348,4117.2,4117.1,15.00921]
[1761665097655,5.8459,4117.1,4117.0,0.43722]
[1761665097854,5.99360348,4117.1,4117.0,15.00922]
[1761665098055,2.5516,4117.1,4117.0,15.00922]
[1761665099557,4.2606,4117.1,4117.0,15.00922]
[1761665100155,5.99360348,4117.1,4117.0,0.43722]
[1761665100358,5.99360348,4117.1,4117.0,15.01022]
[1761665100959,0.14770348,4117.1,4117.0,19.75296506]
[1761665101160,1.709,4117.7,4117.6,0.43715]
[1761665101460,2.43598207,4117.7,4117.6,0.43715]
[1761665101761,4.02128207,4117.7,4117.6,0.97215]
[1761665101961,4.16898555,4117.7,4117.6,0.43715]
[1761665102156,4.02128207,4117.7,4117.6,0.43715]
[1761665102356,4.16898555,4117.7,4117.6,0.43715]
[1761665102559,4.02128207,4117.7,4117.6,0.43715]
[1761665102759,4.16898555,4117.7,4117.6,0.43715]
[1761665102964,6.72058555,4117.7,4117.6,0.43715]
[1761665103156,2.5516,4118.1,4118.0,0.535]
[1761665103360,5.00481144,4118.1,4118.0,0.535]
[1761665103564,5.00481144,4118.1,4118.0,0.97212]
[1761665103958,3.29581144,4118.1,4118.0,1.50712]
[1761665104158,5.00481144,4118.1,4118.0,1.50712]
[1761665104765,4.2606,4118.1,4118.0,1.50712]
[1761665105168,4.2606,4118.1,4117.1,1.20102]
[1761665105169,2.7257,4118.0,4117.1,1.20102]
[1761665105370,6.19560348,4118.0,4117.9,0.43713]
[1761665105570,6.0479,4118.0,4117.9,0.43713]
[1761665105766,6.19560348,4118.0,4117.9,15.01013]
[1761665106069,2.573,4117.8,4117.7,0.43715]
[1761665106267,5.2987,4117.8,4117.7,15.01015]
[1761665106672,0.9966,4118.4,4118.3,0.54508]
[1761665106972,3.32510867,4118.4,4118.3,0.54508]
[1761665107166,6.05080867,4118.4,4118.3,0.54508]
[1761665107362,7.77870867,4118.4,4118.3,0.43708]
[1761665107565,5.6983,4118.2,4118.1,0.4371]
[1761665107762,2.63250348,4117.8,4117.2,1.093]
[1761665108066,5.6983,4117.4,4117.3,14.573]
[1761665108260,5.6983,4117.4,4116.8,3.22570147]
[1761665108261,1.6782,4116.9,4116.8,3.22570147]
[1761665108461,5.6983,4116.7,4116.6,0.43726]
[1761665108666,4.9453,4116.6,4116.5,0.43727]
[1761665108868,6.6235,4116.6,4116.5,15.01027]
[1761665109064,6.77120348,4116.6,4116.5,15.01027]
[1761665109270,4.0201,4116.5,4116.4,0.43728]
[1761665109468,5.6983,4116.5,4116.4,0.43728]
[1761665109771,5.84600348,4116.5,4116.4,15.01028]
[1761665110272,5.6983,4116.5,4116.4,15.01029]
[1761665110870,5.6983,4116.5,4116.4,0.43729]
[1761665111075,2.4605,4116.5,4116.4,15.13009]
[1761665111277,2.4605,4116.9,4116.8,0.49714]
[1761665111472,4.1387,4116.9,4116.8,0.43724]
[1761665111776,4.1387,4116.9,4116.8,0.49714]
[1761665111977,4.1387,4116.9,4116.8,3.6209169]
[1761665112277,2.6034,4117.2,4117.1,0.49711]
[1761665112773,5.0639,4117.2,4117.1,0.49711]
[1761665113482,3.3857,4117.2,4117.1,0.62981]
[1761665113672,3.3857,4117.2,4117.1,3.72976303]
[1761665114082,6.77120348,4117.2,4117.1,15.01121]
[1761665114271,4.31070348,4117.2,4116.5,0.0599]
[1761665114574,4.1387,4117.1,4117.0,0.49712]
[1761665116374,5.6983,4117.1,4117.0,15.07112]
[1761665116679,0.9252,4117.2,4117.1,0.55701]
[1761665117178,3.3857,4117.2,4117.1,0.55701]
[1761665117875,3.3857,4117.2,4117.1,3.6866734]
[1761665118079,0.9966,4118.4,4117.5,0.4999]
[1761665118283,0.9966,4118.4,4118.2,0.93699]
[1761665118284,2.40976764,4118.3,4118.2,0.93699]
[1761665118482,1.6782,4118.3,4118.2,0.93699]
[1761665118774,1.82590348,4118.3,4118.2,0.93699]
[1761665118977,3.38550348,4118.3,4118.2,0.43709]
[1761665119172,3.38550348,4118.3,4118.2,15.01109]
[1761665119875,3.2378,4118.3,4118.2,15.01109]
[1761665120079,5.84600348,4118.3,4118.2,15.01109]
[1761665120274,0.9252,4119.6,4118.9,2.3842]
[1761665120485,1.6782,4119.1,4118.2,20.57251275]
[1761665120672,3.2378,4118.9,4118.8,0.43702]
[1761665120980,0.9252,4119.0,4118.9,1.6683]
[1761665121180,0.9252,4119.0,4118.9,17.7149]
[1761665121372,0.9252,4119.0,4118.9,14.573]
[1761665121373,4.17276403,4119.0,4118.9,14.573]
[1761665121574,0.92736403,4119.0,4118.9,17.7064]
[1761665121774,0.00216403,4119.0,4118.9,21.08887037]
[1761665122082,0.00216403,4119.0,4118.9,22.70757037]
[1761665122584,2.2721,4119.4,4119.3,3.0606]
[1761665122790,2.2721,4119.6,4119.5,3.49756]
[1761665123178,2.2721,4119.6,4119.5,6.66492639]
[1761665123677,2.27483629,4119.6,4119.5,6.66726282]
[1761665123877,3.1973,4120.2,4119.5,8.35876282]
[1761665124081,3.8876,4120.1,4120.0,2.02389]
[1761665124278,0.9252,4120.8,4120.6,0.43684]
[1761665124475,1.6155,4121.2,4120.4,1.6187]
[1761665124676,1.6155,4121.2,4120.7,4.79511236]
[1761665124978,3.8876,4121.1,4121.0,1.587]
[1761665125683,0.00289127,4121.2,4119.7,1.6187]
[1761665125684,2.2721,4120.8,4119.7,1.6187]
[1761665125885,5.5175,4119.6,4118.1,0.4371]
[1761665126180,5.5175,4119.6,4119.0,15.008]
[1761665126374,5.5175,4119.6,4119.0,14.571]
[1761665126573,5.5175,4119.6,4119.1,0.437]
[1761665126774,5.5175,4119.6,4119.3,14.57]
[1761665126987,5.48834417,4119.6,4119.4,0.43696]
[1761665127683,5.48834417,4119.6,4119.3,15.00698]
[1761665128181,5.48834417,4119.6,4119.3,0.43698]
[1761665128584,5.48834417,4119.6,4119.5,14.57133643]
[1761665129080,6.38374417,4119.6,4119.5,14.57133643]
[1761665129584,4.75384417,4119.6,4119.5,16.23113643]
[1761665130181,3.8876,4119.6,4119.5,20.85516538]
[1761665130385,3.8876,4120.1,4120.0,0.4369]
[1761665130685,2.2721,4120.1,4120.0,3.4975]
[1761665130887,2.2721,4120.1,4120.0,3.5703]
[1761665131078,2.2721,4120.4,4120.2,0.43688]
[1761665131385,2.2721,4120.4,4120.3,1.587]
[1761665131582,2.2721,4120.4,4120.3,1.6598]
[1761665131786,3.8876,4120.4,4120.3,1.6598]
[1761665131983,2.2721,4120.4,4120.3,1.6598]
[1761665132990,2.2721,4120.4,4120.3,3.1334]
[1761665134386,3.8876,4120.8,4120.7,3.0606]
[1761665134589,5.388,4120.8,4120.7,15.00383]
[1761665135083,3.8876,4120.8,4120.7,17.89123]
[1761665135985,2.2721,4120.8,4120.7,17.89123]
[1761665136382,3.7439,4120.8,4120.7,17.89023]
[1761665137490,2.4217,4120.4,4119.3,1.4437]
[1761665137693,2.4217,4120.4,4119.6,1.09236]
[1761665137893,3.9221,4119.7,4119.6,3.62785067]
[1761665138095,2.4217,4119.7,4119.6,19.63655067]
[1761665138396,2.357,4120.2,4120.1,1.88059]
[1761665138792,4.7787,4120.2,4120.1,1.88059]
[1761665139189,2.4217,4120.5,4120.3,0.43686]
[1761665139395,2.4217,4120.5,4120.4,1.4437]
[1761665139597,2.4217,4120.5,4120.4,1.5165]
[1761665139798,3.8935,4120.4,4120.3,0.43686]
[1761665139989,5.3939,4120.4,4120.3,15.00186]
[1761665140295,5.3939,4120.4,4120.3,0.43686]
[1761665140588,5.3939,4120.4,4120.3,16.44556]
[1761665140790,2.4217,4120.8,4120.3,18.94887216]
[1761665140990,2.4217,4120.8,4120.7,1.88052]
[1761665141295,2.4217,4120.8,4120.7,17.88922]
[1761665141598,5.3939,4120.8,4120.7,16.44552]
[1761665142696,0.00289127,4121.2,4120.8,0.43681]
[1761665142899,3.8935,4120.9,4120.8,0.43681]
[1761665143192,3.8935,4120.9,4120.8,1.88051]
[1761665143593,3.8935,4120.9,4120.8,3.32421]
[1761665143996,2.4217,4120.9,4120.8,3.39701]
[1761665144508,2.4217,4120.9,4120.8,4.76791]
[1761665144692,2.4217,4120.9,4120.8,4.84071]
[1761665144996,1.47469127,4121.2,4121.1,1.88048]
[1761665145386,1.47469127,4121.2,4121.1,4.99164443]
[1761665145584,2.42459127,4121.2,4121.1,6.43534443]
[1761665145788,2.42459127,4121.2,4121.1,20.99934443]
[1761665149094,0.00289127,4121.2,4121.1,22.44304443]
[1761665149697,0.00289127,4121.2,4121.1,7.95184443]
[1761665149896,5.3939,4121.1,4121.0,0.43678]
[1761665150092,5.3939,4121.1,4120.4,1.09213]
[1761665150093,5.3939,4120.5,4120.4,3.32426]
[1761665150293,3.8935,4120.5,4120.4,17.88726]
[1761665150502,3.3069,4120.8,4120.7,3.32422]
[1761665151000,6.2791,4120.8,4120.7,0.43682]
[1761665152399,6.2791,4120.8,4120.7,1.88052]
[1761665153901,6.2791,4120.8,4120.7,3.39702]
[1761665154202,6.2791,4120.8,4120.7,3.32422]
[1761665154594,2.9722,4120.5,4120.1,3.898]
[1761665154901,6.2791,4120.2,4120.1,3.898]
[1761665155098,6.2791,4120.2,4120.1,18.46]
[1761665155401,6.2791,4120.2,4120.1,22.00185453]
[1761665155896,6.2791,4120.2,4120.1,3.898]
[1761665156295,6.2791,4119.6,4119.5,0.43928643]
[1761665156495,6.2791,4119.6,4119.5,15.00128643]
[1761665156696,6.2791,4119.6,4119.5,18.1506641]
[1761665157197,6.2791,4119.6,4119.5,17.7137141]
[1761665157605,6.2791,4119.6,4119.5,18.1506641]
[1761665158599,6.2791,4119.6,4119.5,0.00233643]
[1761665158808,6.2791,4119.6,4119.5,14.56533643]
[1761665159106,6.2791,4119.6,4119.5,0.00233643]
[1761665159311,5.3939,4118.7,4118.6,0.43704]
[1761665159599,5.3939,4118.5,4118.4,0.43706]
[1761665159803,4.7787,4118.4,4118.3,4.57698617]
[1761665160000,4.7787,4118.4,4118.0,1.71137118]
[1761665160001,6.2791,4118.4,4118.0,0.70477118]
[1761665160194,3.8935,4118.1,4118.0,2.15123782]
[1761665160399,3.89548629,4118.1,4118.0,16.71423782]
[1761665160699,3.8935,4119.3,4119.2,1.4437]
[1761665160904,3.8935,4119.3,4119.2,3.32438]
[1761665161101,2.4217,4118.6,4118.0,0.27043782]
[1761665161309,3.8935,4118.5,4118.4,1.88076]
[1761665161500,3.8935,4118.5,4118.4,4.97280605]
[1761665161708,3.89645965,4118.5,4118.4,1.88076]
[1761665162104,2.42465965,4118.5,4118.4,3.32446]
[1761665163208,3.89645965,4118.5,4118.4,3.32446]
[1761665164507,3.89645965,4118.5,4118.4,3.39726]
[1761665165305,5.38025965,4118.5,4118.4,3.32446]
[1761665165517,5.38025965,4118.5,4118.4,17.89046]
[1761665165711,5.38025965,4118.5,4118.4,17.96326]
[1761665166006,5.38025965,4118.5,4118.4,22.1857433]
[1761665166007,2.42465965,4118.5,4118.4,22.1857433]
[1761665166197,2.42465965,4118.5,4118.4,21.1884433]
[1761665166400,5.18785965,4118.5,4118.4,21.1156433]
[1761665166807,5.18785965,4118.5,4118.4,21.1884433]
[1761665167009,2.42465965,4118.5,4118.4,21.1884433]
[1761665167614,5.95915965,4118.5,4118.4,21.1156433]
[1761665168011,5.95915965,4118.5,4118.4,21.1884433]
[1761665168311,5.95915965,4118.5,4118.4,21.1156433]
[1761665168510,2.6833,4118.1,4118.0,0.27043782]
[1761665168711,4.754,4118.1,4118.0,0.27043782]
[1761665168908,4.8268,4118.1,4118.0,0.27043782]
[1761665169218,4.754,4118.1,4118.0,0.27043782]
[1761665170812,4.754,4118.1,4118.0,0.70754782]
[1761665171313,4.754,4118.1,4118.0,1.64844782]
[1761665171510,2.0707,4118.1,4118.0,2.58934782]
[1761665171715,0.00295965,4118.5,4118.4,4.86457]
[1761665171910,2.68625965,4118.5,4118.4,1.3242]
[1761665172103,2.6833,4118.3,4118.2,1.76129]
[1761665172303,2.6833,4118.3,4118.2,15.00509]
[1761665172518,2.6833,4118.3,4118.2,18.15544715]
[1761665172910,2.6833,4118.3,4118.2,19.47964715]
[1761665173113,0.7774,4118.4,4118.3,3.12538]
[1761665173415,1.31385965,4118.5,4118.4,3.12537]
[1761665173609,0.00295965,4118.5,4118.4,4.86457]
[1761665173919,0.00295965,4118.5,4118.4,8.07336092]
[1761665174816,0.00295965,4118.5,4118.4,8.40136092]
[1761665176420,3.3816,4119.5,4119.4,3.12526]
[1761665176614,2.0707,4119.5,4119.4,4.86446]
[1761665176809,2.0707,4119.5,4119.4,8.003816]
[1761665177304,2.0724483,4119.5,4119.4,8.076616]
[1761665177508,0.0017483,4119.5,4119.4,8.076616]
[1761665178309,2.8481,4120.5,4120.4,1.76106]
[1761665178310,4.159,4120.5,4120.4,1.76106]
[1761665178505,2.0707,4120.5,4120.4,19.43236]
[1761665178813,2.0707,4120.5,4120.4,22.63994257]
[1761665179117,2.6833,4121.1,4121.0,1.76099]
[1761665179418,4.75626471,4121.1,4121.0,0.0021197]
[1761665179620,4.76097266,4121.1,4121.0,0.0021197]
[1761665180119,4.76097266,4121.1,4121.0,1.5853345]
[1761665180311,4.75626471,4121.1,4121.0,2.9494345]
[1761665180510,4.75626471,4121.1,4121.0,0.2611345]
[1761665180815,4.76097266,4121.1,4121.0,0.2611345]
[1761665182817,4.76097266,4121.1,4121.0,1.5853345]
[1761665183113,4.76097266,4121.1,4121.0,0.2611345]
[1761665183318,4.76097266,4121.1,4121.0,0.0021197]
[1761665183520,5.5314,4120.8,4120.7,14.565]
[1761665183814,5.5314,4120.8,4120.7,14.82211935]
[1761665184012,5.5314,4120.8,4120.7,14.565]
[1761665184418,5.5314,4120.8,4120.7,14.56730753]
[1761665184818,5.5314,4120.8,4120.7,0.00230753]
[1761665185016,5.6042,4120.8,4120.7,0.00230753]
[1761665185318,4.754,4120.3,4120.2,14.565]
[1761665185712,0.7774,4120.8,4120.0,15.00189]
[1761665185713,4.754,4120.1,4120.0,15.00189]
[1761665185918,2.0707,4120.1,4120.0,19.43169]
[1761665186121,3.3816,4120.1,4120.0,21.05566506]
[1761665186314,4.754,4120.1,4120.0,21.05567506]
[1761665186816,4.754,4120.1,4120.0,6.49067506]
[1761665187018,4.754,4120.1,4120.0,21.05567506]
[1761665187317,4.754,4120.1,4120.0,6.49067506]
[1761665187621,4.754,4120.1,4120.0,19.69157506]
[1761665187814,4.754,4120.1,4120.0,0.00226831]
[1761665188013,4.754,4120.1,4120.0,14.56726831]
[1761665188213,4.8268,4120.1,4120.0,0.00226831]
[1761665188417,2.7561,4120.1,4118.5,1.7415]
[1761665188620,4.754,4118.7,4118.6,15.8892]
[1761665188820,4.754,4118.7,4118.6,19.06276711]
[1761665189021,4.754,4118.7,4118.6,15.8892]
[1761665189314,4.754,4118.7,4118.6,19.71792407]
[1761665189518,0.7774,4119.0,4118.9,3.12531]
[1761665189714,4.754,4119.4,4119.3,1.3242]
[1761665190909,3.3816,4119.4,4119.3,3.19807]
[1761665191119,2.0707,4119.4,4119.3,6.2835063]
[1761665191323,4.754,4119.4,4119.3,3.5952063]
[1761665191921,4.754,4119.4,4119.3,4.9194063]
[1761665192214,2.0707,4119.4,4119.3,8.1001063]
[1761665192409,3.3816,4119.4,4119.3,6.2835063]
[1761665192615,2.0707,4119.4,4119.3,6.3563063]
[1761665192821,2.0707,4119.4,4119.3,8.1001063]
[1761665193121,2.8481,4119.6,4119.5,3.12525]
[1761665193316,4.159,4119.6,4119.5,3.12525]
[1761665193516,5.5314,4119.6,4119.5,6.25317303]
[1761665194413,5.5314,4119.6,4119.5,6.32597303]
[1761665194620,2.0707,4119.6,4119.5,7.75807303]
[1761665194815,2.0707,4119.6,4119.5,6.32597303]
[1761665195821,3.2391,4119.6,4119.5,6.25317303]
[1761665196020,3.2391,4119.6,4119.5,6.32597303]
[1761665196417,3.2391,4119.6,4119.5,6.25317303]
[1761665196620,2.0707,4119.6,4119.5,7.68527303]
[1761665198630,2.0707,4119.6,4119.5,6.25317303]
[1761665198827,4.0055,4119.6,4119.5,6.32597303]
[1761665199031,4.0055,4119.6,4119.5,6.25317303]
[1761665199232,5.3157,4119.6,4119.5,3.56487303]
[1761665199425,5.3157,4119.6,4119.5,17.69292303]
[1761665199732,5.3157,4119.6,4119.5,18.12987303]
[1761665200029,5.3157,4119.6,4119.5,17.69292303]
[1761665200232,5.3157,4119.6,4119.5,18.12987303]
[1761665200531,5.3157,4119.6,4119.5,17.69292303]
[1761665200726,5.3157,4119.6,4119.5,20.70467303]
[1761665200930,4.0055,4119.6,4119.5,20.70467303]
[1761665201228,4.0055,4119.6,4119.5,20.77747303]
[1761665201433,3.1362,4119.9,4119.8,3.01172]
[1761665201634,4.4464,4119.9,4119.8,3.01172]
[1761665202630,4.4464,4119.9,4119.8,17.57672]
[1761665202835,4.4464,4119.9,4119.8,20.71632388]
[1761665206637,1.9678,4119.9,4119.8,22.22122388]
[1761665207042,1.9678,4119.9,4119.8,22.14842388]
[1761665207245,1.9678,4119.9,4119.8,22.22122388]
[1761665207443,1.9678,4119.9,4119.8,22.14842388]
[1761665207642,3.1362,4119.9,4119.8,22.14842388]
[1761665207843,3.1362,4119.9,4119.8,22.22122388]
[1761665208144,1.9678,4119.9,4119.8,22.22122388]
[1761665208342,3.1362,4119.9,4119.8,20.78912388]
[1761665208542,3.1362,4119.9,4119.8,20.71632388]
[1761665208746,4.4464,4119.9,4119.8,20.71632388]
[1761665208945,3.278,4119.9,4119.8,14.565]
[1761665209146,4.4464,4119.9,4119.8,14.565]
[1761665209548,4.4464,4119.9,4119.1,3.898]
[1761665209549,3.1362,4119.2,4119.1,6.90979]
[1761665209739,3.1362,4119.2,4119.1,21.47479]
[1761665210047,3.1362,4119.2,4119.1,24.66048991]
[1761665210248,3.9026,4119.5,4119.4,3.01176]
[1761665210449,3.9026,4119.5,4119.4,4.44386]
[1761665210649,1.9678,4119.5,4119.4,7.6187554]
[1761665211246,3.1362,4120.0,4119.9,1.62551]
[1761665211442,3.1362,4120.0,4119.9,3.01171]
[1761665211638,1.9678,4120.0,4119.9,7.55804811]
[1761665211837,3.1362,4120.0,4119.9,7.63084811]
[1761665212040,3.1362,4120.0,4119.9,6.19874811]
[1761665212343,4.4464,4120.0,4119.9,20.76374811]
[1761665212543,3.1362,4120.0,4119.9,20.69094811]
[1761665212743,1.9678,4120.0,4119.9,22.12304811]
[1761665213546,0.7774,4120.2,4119.9,22.12304811]
[1761665213752,3.9136,4120.2,4120.1,4.0069]
[1761665213951,3.9136,4120.2,4120.1,3.01169]
[1761665214151,0.7664,4120.5,4120.4,4.44376]
[1761665214152,1.9678,4120.5,4120.4,4.44376]
[1761665214448,1.9458,4120.8,4120.7,4.44372]
[1761665214648,2.48086471,4121.1,4121.0,4.44369]
[1761665214847,3.13846471,4121.1,4121.0,4.44369]
[1761665215038,4.44866471,4121.1,4121.0,2.5748]
[1761665215445,4.44866471,4121.1,4121.0,17.1398]
[1761665217849,4.44866471,4121.1,4121.0,2.5748]
[1761665218051,4.44866471,4121.1,4121.0,17.1388]
[1761665218246,1.82278732,4121.8,4121.7,1.1886]
[1761665218452,2.4786,4121.4,4121.3,2.5748]
[1761665218655,2.4786,4121.4,4121.3,15.7526]
[1761665218950,2.4786,4121.4,4121.3,18.97622549]
[1761665219345,2.48138707,4121.4,4121.3,19.23372572]
[1761665219754,2.48138707,4121.4,4121.3,4.66972572]
[1761665219953,2.48138707,4121.4,4121.3,19.23272572]
[1761665220343,4.44918707,4121.4,4121.3,19.23272572]
[1761665220548,4.44918707,4121.4,4121.3,14.56578418]
[1761665221051,4.44918707,4121.4,4121.3,0.00278418]
[1761665221456,4.4464,4119.9,4119.8,2.93311425]
[1761665221648,4.4464,4119.9,4119.8,14.563]
[1761665221851,4.4464,4119.9,4119.8,16.01189041]
[1761665222053,4.4464,4120.2,4120.1,2.5748]
[1761665222454,4.4464,4120.2,4120.1,2.57785559]
[1761665222656,4.4464,4120.2,4120.1,3.01474559]
[1761665223754,4.4464,4120.2,4120.1,2.57785559]
[1761665224256,4.4464,4120.2,4120.1,4.15775559]
[1761665224456,4.4464,4120.2,4120.1,2.57785559]
[1761665224658,2.8483,4120.8,4120.7,1.115]
[1761665224851,1.8663,4120.5,4120.4,1.115]
[1761665225050,2.2927,4120.4,4120.3,0.43687]
[1761665225255,3.0144,4120.3,4120.2,1.55187]
[1761665225460,4.0777,4120.2,4120.1,0.00305559]
[1761665226257,4.0777,4120.2,4120.1,1.11805559]
[1761665226558,4.0777,4120.2,4120.1,2.33295559]
[1761665226758,12.0777,4120.2,4120.1,0.00305559]
[1761665226952,4.0777,4119.2,4119.1,1.9959617]
[1761665227148,3.4852,4118.5,4118.4,3.29658425]
[1761665227352,1.0522,4118.4,4118.3,2.18159425]
[1761665227562,3.6809,4118.4,4118.3,17.43131425]
[1761665227754,3.6809,4118.4,4118.3,1.1238]
[1761665227956,3.68394375,4118.4,4118.3,15.95172704]
[1761665228255,3.68394375,4118.4,4118.3,14.82792704]
[1761665229054,3.68394375,4118.4,4118.3,0.26492704]
[1761665229253,3.68394375,4118.4,4118.3,14.82892704]
[1761665229457,3.68394375,4118.4,4118.3,0.26492704]
[1761665230955,2.63014375,4118.4,4118.3,2.44942704]
[1761665231259,2.6271,4119.2,4119.1,2.62149]
[1761665231452,1.5749,4119.2,4119.1,2.62149]
[1761665231649,1.5749,4119.2,4119.1,3.80619]
[1761665232058,1.5749,4119.1,4118.4,1.74451425]
[1761665232357,1.5749,4119.0,4118.9,3.80622]
[1761665232559,0.00190012,4119.1,4119.0,3.3692]
[1761665232762,2.62900012,4119.1,4119.0,5.31975838]
[1761665232964,2.62900012,4119.1,4119.0,3.13525838]
[1761665232965,3.68280012,4119.1,4119.0,3.13525838]
[1761665233357,3.68280012,4119.1,4119.0,5.31975838]
[1761665233556,3.68280012,4119.1,4119.0,19.88575838]
[1761665234061,2.62900012,4119.1,4119.0,19.88575838]
[1761665234664,2.62900012,4119.1,4119.0,5.31975838]
[1761665234865,2.62900012,4119.1,4119.0,19.88575838]
[1761665235461,1.57680012,4119.1,4119.0,21.07045838]
[1761665235662,0.00190012,4119.1,4119.0,21.07045838]
[1761665236064,0.00190012,4119.1,4119.0,21.14325838]
[1761665236667,2.62900012,4119.1,4119.0,19.88575838]
[1761665237267,3.68280012,4119.1,4119.0,16.7505]
[1761665237454,3.6809,4118.4,4118.2,1.74451425]
[1761665237662,3.6809,4118.4,4118.3,14.83092704]
[1761665238167,3.6809,4118.4,4118.3,15.95472704]
[1761665239165,3.6809,4118.4,4118.3,1.38872704]
[1761665239362,3.6809,4118.4,4118.3,15.95572704]
[1761665239867,3.6809,4118.4,4118.3,16.39280704]
[1761665240064,3.6809,4118.4,4118.3,17.45350704]
[1761665240265,2.6271,4118.8,4118.7,2.1845]
[1761665240562,2.6271,4118.8,4118.3,18.09661373]
[1761665240563,1.0522,4118.4,4118.3,0.26492704]
[1761665240868,4.3563,4118.4,4118.3,15.26900704]
[1761665241365,4.3563,4118.4,4118.3,0.26492704]
[1761665241765,4.3563,4118.4,4118.3,14.83192704]
[1761665241967,4.3563,4118.4,4118.3,17.45350704]
[1761665242154,3.3025,4118.4,4118.3,17.45350704]
[1761665242668,4.3563,4118.4,4118.3,1.38872704]
[1761665242871,4.3563,4118.4,4118.3,16.39380704]
[1761665243467,1.5749,4118.4,4118.3,18.63920704]
[1761665244161,1.5749,4118.4,4118.3,17.45450704]
[1761665244468,1.5749,4118.4,4118.3,18.71200704]
[1761665244768,1.5749,4118.4,4118.3,18.63920704]
[1761665245060,1.5749,4118.4,4118.3,17.45450704]
[1761665245266,1.5749,4118.4,4118.3,18.71200704]
[1761665245469,1.0522,4118.7,4118.6,2.62154]
[1761665245657,2.6271,4118.7,4118.6,2.62154]
[1761665246057,1.5749,4118.7,4118.6,2.62154]
[1761665246262,1.7276,4119.0,4118.9,2.1845]
[1761665246463,1.7276,4119.0,4118.9,2.62151]
[1761665246667,3.3025,4119.0,4118.9,2.62151]
[1761665247070,4.3563,4119.0,4118.9,2.62151]
[1761665247568,4.3563,4119.0,4118.9,17.18951]
[1761665248569,4.3563,4119.0,4118.9,14.568]
[1761665248767,4.3563,4119.0,4118.3,1.35762704]
[1761665248768,2.6271,4118.4,4118.3,2.88650704]
[1761665248968,3.6809,4118.4,4118.3,17.45450704]
[1761665249169,3.6809,4118.4,4118.3,17.97104698]
[1761665249569,3.6809,4118.4,4118.3,3.40304698]
[1761665249772,3.6809,4118.4,4118.3,1.38872704]